bitfinex-derivatives/quotes_ETHF0:USTF0_20250317
["timestamp","ask_amount","ask_price","bid_price","bid_amount"]
[1742221614118,0.00790847,1898.1,1898.0,1.05382]
[1742221615010,0.00790847,1898.1,1898.0,5.41482]
[1742221615513,0.00790847,1898.1,1898.0,6.78502]
[1742221615721,0.00790847,1898.1,1898.0,2.42402]
[1742221616015,1.05382,1898.0,1897.9,5.41785]
[1742221616214,0.00790847,1898.1,1897.7,7.57570847]
[1742221616608,0.00790847,1898.1,1898.0,1.05382]
[1742221617318,0.00790847,1898.1,1898.0,2.41882]
[1742221617909,3.2078,1898.5,1898.4,1.0536]
[1742221618109,1.05347,1898.7,1898.0,2.0392]
[1742221618110,7.5578,1898.9,1898.3,3.2078]
[1742221618314,3.2078,1898.9,1898.8,1.05338]
[1742221619117,4.26097,1899.2,1898.9,1.05328]
[1742221619321,0.00790847,1899.0,1898.9,1.05328]
[1742221619713,3.21570847,1899.0,1898.9,1.05328]
[1742221619913,3.21570847,1899.0,1898.8,5.715]
[1742221620117,0.00790847,1899.0,1898.9,1.05332]
[1742221620622,3.21570847,1899.0,1898.8,4.35]
[1742221621015,1.05338,1898.8,1898.7,0.00790847]
[1742221621214,3.21570847,1899.0,1898.7,0.00790847]
[1742221621414,3.21570847,1899.0,1898.9,1.05332]
[1742221621415,0.00790847,1899.0,1898.9,1.05332]
[1742221622116,0.00790847,1899.0,1898.7,1.35670847]
[1742221622309,3.21570847,1899.0,1898.7,1.35670847]
[1742221622517,1.4027,1898.9,1898.7,1.06132847]
[1742221622821,40.8,1898.8,1898.7,1.06132847]
[1742221623220,1.4027,1898.9,1898.8,1.05338]
[1742221623521,1.4027,1898.9,1898.7,0.00790847]
[1742221623722,1.4027,1898.9,1898.7,1.06133847]
[1742221623723,44.0078,1898.8,1898.7,1.06133847]
[1742221624025,45.06118,1898.8,1898.7,0.00790847]
[1742221624220,46.5078,1898.8,1898.3,5.38963]
[1742221624419,3.2078,1898.6,1898.1,0.6701]
[1742221624614,2.41727,1898.5,1898.2,1.05367]
[1742221624814,1.3637,1898.5,1898.4,1.0536]
[1742221625026,44.0078,1898.8,1898.7,1.05343]
[1742221625225,3.2078,1898.8,1898.7,1.05343]
[1742221625422,1.3637,1898.9,1898.7,1.05339]
[1742221625726,1.3637,1898.9,1898.8,1.05338]
[1742221625929,0.00790847,1899.0,1898.9,1.05332]
[1742221626121,0.00790847,1899.0,1898.9,4.26112]
[1742221626318,1.3572,1899.4,1899.3,1.0531]
[1742221626721,40.8,1899.6,1899.5,1.05299]
[1742221626918,1.3572,1899.6,1899.1,2.63303]
[1742221627124,1.3572,1899.6,1899.4,1.05301]
[1742221627326,3.2078,1899.5,1899.4,1.05301]
[1742221627531,1.3572,1899.6,1899.5,1.05299]
[1742221627721,1.3572,1899.6,1899.4,1.05301]
[1742221628025,1.3572,1899.6,1899.5,1.05299]
[1742221628223,0.00790847,1899.7,1899.5,1.05299]
[1742221628224,0.00790847,1899.7,1899.6,1.05293]
[1742221628430,0.00790847,1899.7,1899.6,5.67543]
[1742221628824,0.00790847,1899.7,1899.6,2.46763]
[1742221629131,0.00790847,1899.7,1899.5,9.4835]
[1742221629330,0.00790847,1899.7,1899.5,5.1465]
[1742221629331,3.2078,1899.6,1899.5,5.1465]
[1742221629537,1.06081847,1899.7,1899.6,1.05293]
[1742221629538,0.00790847,1899.7,1899.6,1.05293]
[1742221629735,1.40370847,1899.7,1899.6,1.05293]
[1742221629934,8.47e-06,1899.7,1899.6,8.59673]
[1742221630522,8.47e-06,1899.7,1899.6,4.26073]
[1742221632132,8.47e-06,1899.7,1899.6,6.76073]
[1742221632634,8.47e-06,1899.7,1899.6,11.90723]
[1742221633336,8.47e-06,1899.7,1899.6,12.57726548]
[1742221633633,3.2078,1900.7,1900.6,1.05238]
[1742221633822,3.2078,1900.7,1900.5,1.0524]
[1742221634029,3.2078,1900.7,1900.4,4.337]
[1742221634228,1.3255,1900.6,1900.2,4.337]
[1742221634634,6.71591,1900.6,1900.3,1.05254]
[1742221634834,5.67140847,1900.6,1900.4,1.05248]
[1742221635038,5.67140847,1900.6,1900.5,1.05243]
[1742221635039,1.33340847,1900.6,1900.5,1.05243]
[1742221635427,1.33340847,1900.6,1900.3,1.4246]
[1742221635632,1.33340847,1900.6,1900.5,1.05243]
[1742221635930,2.38580847,1900.6,1900.3,2.47711]
[1742221636131,1.33340847,1900.6,1900.3,1.4246]
[1742221636331,1.33340847,1900.6,1900.3,2.47709]
[1742221636538,1.33340847,1900.6,1900.4,1.05247]
[1742221636734,1.33340847,1900.6,1900.2,4.33490847]
[1742221636925,1.33340847,1900.6,1900.5,1.05243]
[1742221637740,1.05246,1900.5,1900.2,4.26827847]
[1742221637939,1.43,1900.4,1900.2,7.53770847]
[1742221638135,1.43,1900.4,1900.2,0.00790847]
[1742221638136,4.6378,1900.4,1900.2,0.00790847]
[1742221638437,40.8,1900.3,1900.2,0.00790847]
[1742221638635,43.23484,1900.3,1900.2,0.00790847]
[1742221639033,1.05262,1900.2,1899.8,5.1465]
[1742221639241,1.05262,1900.2,1899.5,35.69291]
[1742221639242,1.3823,1900.1,1899.7,4.315]
[1742221639438,40.8,1900.3,1900.2,1.0526]
[1742221639840,3.2078,1900.5,1900.2,1.05257]
[1742221640141,4.26027,1900.5,1900.2,1.0526]
[1742221640335,1.05254,1900.3,1900.2,0.00790847]
[1742221640941,4.26034,1900.3,1900.2,0.00790847]
[1742221641143,6.76034,1900.3,1900.2,0.00790847]
[1742221641434,4.26034,1900.3,1900.2,0.00790847]
[1742221642433,12.21883211,1900.3,1899.5,0.6547]
[1742221642640,3.2078,1899.7,1899.5,1.05297]
[1742221642835,2.48077,1899.6,1899.4,2.40133]
[1742221643236,1.4278,1899.6,1899.5,1.05299]
[1742221643748,1.05299,1899.5,1899.4,1.35620847]
[1742221643938,4.6356,1899.6,1899.4,0.00790847]
[1742221644137,3.2078,1899.6,1899.5,1.05299]
[1742221644337,0.00790847,1899.7,1899.4,1.45620847]
[1742221644542,1.06080847,1899.7,1899.5,1.05296]
[1742221644743,1.05296,1899.6,1899.4,2.50921847]
[1742221644940,4.5574,1899.6,1899.5,1.05299]
[1742221645146,1.06081847,1899.7,1899.6,1.05293]
[1742221645147,0.00790847,1899.7,1899.6,1.05293]
[1742221645638,0.00790847,1899.7,1899.6,6.19943]
[1742221645835,1.3496,1900.2,1899.6,5.8036]
[1742221646032,1.05276,1900.0,1899.7,4.329]
[1742221646232,1.05268,1900.1,1899.7,5.7773]
[1742221646432,1.05278,1899.9,1899.7,6.83015]
[1742221646638,1.3496,1900.1,1899.7,6.83013]
[1742221646839,4.26061,1899.9,1899.7,6.83013]
[1742221647143,1.05282,1899.8,1899.7,1.4483]
[1742221647341,1.3496,1899.8,1899.7,2.50118]
[1742221647538,4.2606,1899.9,1899.7,2.50118]
[1742221647742,5.37975,1900.0,1899.8,1.05282]
[1742221647944,1.05275,1900.0,1899.8,1.05282]
[1742221648148,1.05277,1899.9,1899.8,1.05282]
[1742221648339,1.3236,1900.0,1899.5,3.2078]
[1742221648534,7.5348,1899.9,1899.4,5.15440847]
[1742221648745,1.3236,1899.8,1899.5,1.3911]
[1742221648949,1.3236,1900.0,1899.8,1.05278]
[1742221649242,8.60237847,1900.1,1900.0,1.05271]
[1742221649436,3.21570847,1900.1,1899.5,4.5989]
[1742221649642,2.37634,1900.0,1899.8,1.05279]
[1742221649838,2.37634,1900.0,1899.5,7.23136]
[1742221649839,1.3236,1900.0,1899.9,1.05277]
[1742221650144,2.37634,1900.0,1899.8,1.0528]
[1742221650346,2.37634,1900.0,1899.9,1.3911]
[1742221650552,1.3236,1900.0,1899.5,4.333]
[1742221650845,2.37635,1900.0,1899.8,1.0528]
[1742221651237,2.37631,1900.0,1899.9,1.05277]
[1742221651438,1.3236,1900.0,1899.7,1.05285]
[1742221651638,4.26837847,1900.1,1899.9,1.05271]
[1742221651936,1.06056847,1900.1,1900.0,2.37581]
[1742221652134,1.06056847,1900.1,1900.0,1.3231]
[1742221652448,3.21570847,1900.1,1899.6,4.328]
[1742221652749,1.05283,1899.8,1899.7,2.37596]
[1742221652945,1.05293,1899.7,1899.6,1.05293]
[1742221653249,3.2078,1899.9,1899.4,9.47940847]
[1742221653451,5.6056,1899.9,1899.8,1.05282]
[1742221653651,3.2078,1899.9,1899.8,1.05282]
[1742221654046,1.06059847,1900.1,1899.5,7.26285]
[1742221654047,0.00790847,1900.1,1899.7,5.7496]
[1742221654247,5.60555,1900.0,1899.8,1.05279]
[1742221654541,5.60555,1900.0,1899.9,1.05277]
[1742221654542,4.5528,1900.0,1899.9,1.05277]
[1742221655049,3.2078,1900.0,1899.9,1.05277]
[1742221655345,40.8,1900.4,1899.9,1.05277]
[1742221655346,3.912,1900.6,1900.0,1.05271]
[1742221655536,7.31677211,1900.8,1900.3,2.63137]
[1742221655537,5.60509,1900.8,1900.3,2.63137]
[1742221655843,1.05232,1900.7,1900.5,1.0524]
[1742221656144,1.345,1900.7,1900.6,1.05238]
[1742221656342,2.39732,1900.7,1900.6,1.05238]
[1742221656535,0.00790847,1900.8,1900.5,0.00790847]
[1742221656743,3.21570847,1900.8,1900.7,1.05227]
[1742221656946,4.26799847,1900.8,1900.6,1.05236]
[1742221657150,0.00790847,1900.8,1900.7,1.05232]
[1742221657349,4.25975,1901.4,1900.8,2.6306]
[1742221657648,1.3646,1901.3,1900.9,1.4114]
[1742221657842,3.2078,1901.4,1901.0,4.324]
[1742221658149,3.2078,1901.4,1901.2,1.05201]
[1742221658340,1.05202,1901.3,1901.1,1.4114]
[1742221658541,2.41662,1901.3,1901.1,1.4114]
[1742221658743,1.05205,1901.2,1901.1,1.4114]
[1742221658942,1.3646,1901.3,1901.1,1.4114]
[1742221659145,3.2078,1901.2,1900.9,6.19867]
[1742221659341,2.41671,1901.1,1900.9,7.61008]
[1742221659543,1.05216,1901.0,1900.9,6.5579]
[1742221659746,2.41675,1901.1,1900.9,2.46361]
[1742221660047,3.2078,1901.0,1900.6,4.323]
[1742221660348,3.2078,1900.8,1900.7,1.4004]
[1742221660547,1.05223,1900.9,1900.7,2.45269]
[1742221660848,3.2078,1901.0,1900.9,1.05221]
[1742221661243,3.2078,1901.1,1901.0,1.05212]
[1742221661444,1.05216,1901.0,1900.9,1.4004]
[1742221661849,2.50416,1901.0,1900.9,1.4004]
[1742221662455,1.05227,1900.8,1900.6,1.05234]
[1742221662647,40.8,1900.7,1900.6,2.48654]
[1742221663043,41.85232,1900.7,1900.6,1.4342]
[1742221663648,45.06012,1900.7,1900.6,1.4342]
[1742221663851,1.05238,1900.6,1900.5,0.00790847]
[1742221664146,1.05238,1900.6,1900.1,9.0373]
[1742221664147,1.05266,1900.1,1900.0,5.36071]
[1742221664346,1.05265,1900.2,1900.0,5.36071]
[1742221664546,1.05265,1900.2,1900.1,1.4342]
[1742221665052,1.05269,1900.1,1899.9,2.48694]
[1742221665255,3.2078,1900.1,1900.0,1.06061847]
[1742221665452,4.26046,1900.1,1900.0,2.49481847]
[1742221665657,0.00790847,1900.3,1900.2,1.0526]
[1742221665952,2.63036,1901.1,1900.6,1.05235]
[1742221666159,4.2601,1900.8,1900.6,1.05235]
[1742221666346,4.26007,1900.8,1900.7,1.3417]
[1742221667058,3.2078,1900.8,1900.7,1.3417]
[1742221667260,3.2078,1900.8,1900.4,6.19896]
[1742221667450,1.05251,1900.4,1900.2,1.05256]
[1742221667645,1.05254,1900.3,1900.2,1.3417]
[1742221667851,1.05253,1900.4,1900.2,2.3943]
[1742221668158,1.05254,1900.3,1900.2,1.3417]
[1742221668462,1.0526,1900.2,1900.1,5.1465]
[1742221668656,1.0526,1900.2,1900.1,1.4009]
[1742221668955,1.05266,1900.1,1900.0,0.00790847]
[1742221669253,2.46786,1900.1,1900.0,0.00790847]
[1742221669452,2.63178,1900.0,1899.4,1.05302]
[1742221669652,3.2078,1900.0,1899.4,6.94362]
[1742221669852,1.4152,1900.1,1899.6,5.84014]
[1742221670054,1.4152,1900.1,1900.0,1.05271]
[1742221670254,5.67568,1900.1,1899.7,5.7119]
[1742221670454,4.623,1900.1,1900.0,1.05271]
[1742221670762,0.00790847,1900.1,1900.0,1.05271]
[1742221671355,0.00790847,1900.1,1899.9,1.4009]
[1742221671655,1.05271,1900.0,1899.9,1.4009]
[1742221671960,4.26840847,1900.1,1899.9,2.45367]
[1742221672159,4.26840847,1900.1,1899.9,1.4009]
[1742221672462,1.06057847,1900.1,1899.9,2.45362]
[1742221672665,1.06058847,1900.1,1899.9,2.45364]
[1742221672964,0.00790847,1900.1,1900.0,1.05271]
[1742221673560,0.00790847,1900.1,1900.0,5.36071]
[1742221673761,3.2078,1900.4,1900.3,1.05254]
[1742221674064,3.2078,1900.4,1900.2,1.05256]
[1742221674259,3.2078,1900.4,1900.1,6.19912]
[1742221674465,4.2604,1900.2,1900.1,5.1465]
[1742221674661,1.0526,1900.2,1900.0,5.36068]
[1742221674967,1.0526,1900.2,1900.1,1.446]
[1742221675462,1.36160847,1900.3,1900.1,1.446]
[1742221675463,2.41419847,1900.3,1900.1,1.446]
[1742221675651,1.0526,1900.2,1900.1,1.446]
[1742221676063,1.0526,1900.2,1900.1,2.49866]
[1742221676257,2.41414847,1900.3,1900.1,1.446]
[1742221676562,0.00790847,1900.3,1900.2,1.0526]
[1742221677861,0.00790847,1900.3,1900.2,4.2604]
[1742221678061,1.05238,1900.6,1900.2,3.2078]
[1742221678263,1.05238,1900.6,1900.4,1.05247]
[1742221678466,4.26016,1900.7,1900.6,1.05238]
[1742221678663,3.2078,1900.9,1900.8,1.05227]
[1742221679065,4.26001,1900.9,1900.7,2.49458847]
[1742221679262,1.05227,1900.8,1900.7,0.00790847]
[1742221679463,1.3437,1900.8,1900.7,0.00790847]
[1742221679662,2.39597,1900.8,1900.7,0.00790847]
[1742221680264,3.2078,1900.9,1900.8,1.05227]
[1742221680566,4.26001,1900.9,1900.8,1.4344]
[1742221680754,0.00790847,1901.0,1900.9,1.05221]
[1742221680958,2.63833847,1901.0,1900.7,0.00790847]
[1742221681161,4.26007,1900.8,1900.7,0.00790847]
[1742221681354,45.06007,1900.8,1900.7,0.00790847]
[1742221681866,44.0078,1900.8,1900.7,0.00790847]
[1742221682168,4.26007,1900.8,1900.7,0.00790847]
[1742221682660,44.0078,1900.8,1900.7,1.06022847]
[1742221682866,4.26007,1900.8,1900.7,0.00790847]
[1742221683060,4.26007,1900.8,1900.7,1.43980847]
[1742221683061,3.2078,1900.8,1900.7,1.43980847]
[1742221683261,41.85223,1900.9,1900.8,1.05227]
[1742221683461,1.05227,1900.8,1900.7,1.43980847]
[1742221683658,4.26007,1900.8,1900.7,1.43980847]
[1742221683868,4.26007,1900.8,1900.7,0.00790847]
[1742221683869,5.64557,1900.8,1900.7,0.00790847]
[1742221684259,10.00304005,1900.8,1900.7,0.00790847]
[1742221684460,10.94811814,1900.8,1900.7,0.00790847]
[1742221684761,10.94811814,1900.8,1900.4,1.4301]
[1742221684762,1.05243,1900.5,1900.4,1.4301]
[1742221684963,3.2078,1900.5,1900.2,5.32257]
[1742221685155,1.0526,1900.2,1900.1,1.4301]
[1742221685360,3.2078,1900.3,1899.9,1.05273]
[1742221685671,4.26046,1900.1,1900.0,1.4301]
[1742221685864,1.0528,1899.9,1899.7,1.05285]
[1742221686065,1.05282,1899.8,1899.6,1.0529]
[1742221686266,1.05282,1899.8,1899.7,1.05285]
[1742221686464,1.05282,1899.8,1899.6,5.32280847]
[1742221686674,1.05282,1899.8,1899.7,1.05288]
[1742221687167,1.05282,1899.8,1899.7,1.3771]
[1742221687470,3.2078,1899.9,1899.6,0.00790847]
[1742221687667,0.00790847,1900.0,1899.9,1.05277]
[1742221687863,0.00790847,1900.0,1899.7,1.3771]
[1742221688063,1.05282,1899.8,1899.7,1.3771]
[1742221688261,1.05288,1899.7,1899.6,0.00790847]
[1742221688457,1.05288,1899.7,1899.6,1.38500847]
[1742221689163,4.26068,1899.7,1899.6,0.00790847]
[1742221689663,1.05315,1899.2,1899.1,1.3771]
[1742221689865,4.26095,1899.2,1899.1,1.3771]
[1742221690069,1.05329,1899.0,1898.6,9.4115]
[1742221690273,3.2078,1898.9,1898.8,1.05338]
[1742221690467,3.2078,1898.9,1898.7,1.3995]
[1742221690468,3.2078,1898.9,1898.7,2.4529]
[1742221690669,1.3586,1899.1,1898.7,1.3995]
[1742221690970,0.00790847,1899.0,1898.8,1.05335]
[1742221691168,1.06118847,1899.0,1898.9,1.3995]
[1742221691471,3.21570847,1899.0,1898.9,1.3995]
[1742221691766,4.26897847,1899.0,1898.9,1.3995]
[1742221692566,4.26897847,1899.0,1898.6,1.06137847]
[1742221692567,3.21570847,1899.0,1898.6,0.00790847]
[1742221692766,1.05343,1898.7,1898.6,1.40740847]
[1742221693173,2.37993,1898.7,1898.6,1.40740847]
[1742221693573,2.37993,1898.7,1898.6,0.00790847]
[1742221693975,1.05354,1898.5,1898.4,1.3666]
[1742221694182,4.26134,1898.5,1898.4,1.3666]
[1742221694472,3.2078,1898.5,1898.1,5.859]
[1742221694667,3.2078,1898.5,1898.4,1.0536]
[1742221694871,3.2078,1898.8,1898.3,8.3543]
[1742221695176,0.00790847,1899.0,1898.8,1.05337]
[1742221695370,3.2078,1898.9,1898.8,1.05337]
[1742221695571,3.2078,1898.9,1898.6,4.244]
[1742221695769,3.2078,1898.9,1898.8,1.05338]
[1742221696070,0.00790847,1899.0,1898.6,4.244]
[1742221696280,0.00790847,1899.0,1898.9,1.05332]
[1742221696670,4.26078,1899.6,1899.2,1.05311]
[1742221696869,3.2078,1899.6,1899.2,4.238]
[1742221697071,3.2078,1899.4,1899.2,4.238]
[1742221697269,3.2078,1899.4,1899.0,9.3875]
[1742221697471,1.05321,1899.2,1899.0,9.3875]
[1742221697766,3.2078,1899.2,1898.9,4.241]
[1742221697974,5.61664847,1899.3,1899.0,1.05324]
[1742221698475,1.05316,1899.2,1898.9,1.05328]
[1742221698774,4.56350847,1899.3,1898.8,6.19984]
[1742221698775,1.05322,1899.1,1898.8,6.19984]
[1742221698971,1.05327,1899.0,1898.8,5.1465]
[1742221699170,1.05327,1899.0,1898.7,6.6686]
[1742221699375,2.47629,1899.0,1898.8,1.05335]
[1742221699672,1.05333,1898.9,1898.7,6.6686]
[1742221699982,3.2078,1898.9,1898.5,38.5765]
[1742221700171,1.423,1899.0,1898.4,1.06147847]
[1742221700172,1.05349,1898.6,1898.4,0.00790847]
[1742221700476,1.05354,1898.5,1898.4,0.00790847]
[1742221700679,1.05353,1898.6,1898.4,0.00790847]
[1742221700878,2.47653,1898.6,1898.4,1.06145847]
[1742221701173,3.2078,1898.7,1898.4,0.00790847]
[1742221701481,1.05334,1898.9,1898.7,1.05342]
[1742221701663,8.8528,1899.1,1898.5,9.3745]
[1742221701869,4.26116,1898.9,1898.7,1.05343]
[1742221702178,3.2078,1898.9,1898.7,1.05343]
[1742221702477,5.58852,1898.9,1898.7,1.05343]
[1742221702678,3.2078,1898.9,1898.8,1.05338]
[1742221702874,48.2298,1899.1,1898.6,3.2078]
[1742221703071,1.05327,1899.0,1898.6,3.2078]
[1742221703379,7.4298,1899.1,1898.5,9.3745]
[1742221703380,4.26115,1898.9,1898.5,9.3745]
[1742221703576,4.26115,1898.9,1898.7,1.05341]
[1742221703780,3.2078,1898.9,1898.8,1.05338]
[1742221704170,3.2078,1898.9,1898.5,12.00831]
[1742221704171,3.2078,1899.1,1898.5,15.21611]
[1742221704376,3.2078,1899.1,1899.0,1.05327]
[1742221704980,3.21570847,1899.3,1899.2,1.05315]
[1742221705175,0.00790847,1899.3,1899.2,5.26315]
[1742221705382,3.2078,1899.6,1899.5,1.05299]
[1742221705686,3.2078,1899.6,1899.2,4.21]
[1742221705977,4.26075,1899.6,1899.4,1.05302]
[1742221706173,3.2078,1899.6,1899.2,4.21]
[1742221706373,1.05304,1899.4,1899.2,4.21]
[1742221706680,1.05299,1899.5,1899.3,1.05306]
[1742221706882,3.21570847,1899.6,1899.5,1.05299]
[1742221707383,1.05306,1899.4,1899.2,5.27101847]
[1742221707768,1.4131,1899.5,1899.2,4.21790847]
[1742221708074,3.21570847,1899.6,1899.5,1.05299]
[1742221708383,0.00790847,1899.6,1899.5,1.05299]
[1742221708879,41.85277,1899.9,1899.5,4.202]
[1742221709076,41.85277,1899.9,1899.7,1.05284]
[1742221709480,3.2078,1899.8,1899.5,9.3485]
[1742221709781,4.26073,1899.6,1899.5,5.1465]
[1742221709976,3.2078,1899.6,1899.2,0.00790847]
[1742221710177,4.26086,1899.4,1899.3,1.05308]
[1742221710378,1.0531,1899.3,1899.2,0.00790847]
[1742221710578,2.3727,1899.3,1899.2,0.00790847]
[1742221711183,3.2078,1899.4,1899.2,0.00790847]
[1742221711385,1.05295,1899.6,1899.5,1.05299]
[1742221711582,1.06075847,1899.8,1899.3,7.77919]
[1742221711782,0.00790847,1899.8,1899.7,1.05288]
[1742221712179,0.00790847,1899.8,1899.6,5.97419]
[1742221712484,0.00790847,1899.8,1899.7,1.4048]
[1742221712684,1.06072847,1899.8,1899.7,1.4048]
[1742221712880,4.26852847,1899.8,1899.7,1.4048]
[1742221713186,5.61642847,1899.8,1899.7,1.4048]
[1742221713679,5.61642847,1899.8,1899.7,2.45768]
[1742221713680,3.21570847,1899.8,1899.7,2.45768]
[1742221714683,0.00790847,1899.8,1899.7,2.45768]
[1742221715788,1.06072847,1899.8,1899.7,2.45768]
[1742221715984,1.06072847,1899.8,1899.7,1.4048]
[1742221716487,2.39542847,1899.8,1899.7,2.45768]
[1742221716688,1.34260847,1899.8,1899.7,2.45768]
[1742221716989,0.00790847,1899.8,1899.7,2.45768]
[1742221717392,1.06072847,1899.8,1899.7,2.45768]
[1742221717582,3.21570847,1899.8,1899.7,1.05288]
[1742221720489,0.00790847,1899.8,1899.7,1.05288]
[1742221723392,0.00790847,1899.8,1899.7,5.18088]
[1742221723592,3.2078,1900.5,1899.9,2.63186]
[1742221723788,4.15359235,1900.5,1900.0,8.06904]
[1742221724030,1.3247,1900.6,1900.5,1.05243]
[1742221724299,3.2078,1900.7,1900.6,1.05238]
[1742221724691,0.00520095,1900.8,1900.7,1.05232]
[1742221724990,3.2078,1901.2,1900.6,9.9689]
[1742221725193,3.2078,1901.0,1900.7,2.3616]
[1742221725490,1.05229,1900.8,1900.6,5.18533]
[1742221725796,1.05229,1900.8,1900.7,1.3093]
[1742221726088,1.05238,1900.6,1900.5,0.00790847]
[1742221726279,4.26018,1900.6,1900.5,0.00790847]
[1742221726485,1.05253,1900.4,1900.1,35.6568]
[1742221726685,1.3897,1900.5,1900.2,1.3628]
[1742221726892,1.05254,1900.3,1900.2,2.4154]
[1742221727588,3.2078,1900.4,1900.2,2.4154]
[1742221727794,4.26819847,1900.4,1900.3,1.05254]
[1742221727988,4.26819847,1900.4,1900.2,2.41536]
[1742221727989,1.05254,1900.3,1900.2,2.41536]
[1742221728189,1.05254,1900.3,1900.2,1.3628]
[1742221728388,2.44224,1900.3,1900.2,2.4154]
[1742221728590,3.21570847,1900.4,1900.1,6.20702847]
[1742221728788,1.0526,1900.2,1900.1,6.51720847]
[1742221728987,4.2604,1900.2,1900.1,6.51720847]
[1742221729186,4.2604,1900.2,1900.1,0.00790847]
[1742221729393,5.83935,1900.2,1899.7,6.19936]
[1742221729593,1.05273,1900.0,1899.7,1.4218]
[1742221729888,45.0606,1899.9,1899.8,1.05282]
[1742221730091,45.0606,1899.9,1899.7,1.4218]
[1742221730092,1.05282,1899.8,1899.7,2.47463]
[1742221730288,4.26061,1899.9,1899.8,1.05282]
[1742221731994,4.26061,1899.9,1899.7,2.48254847]
[1742221732185,4.26061,1899.9,1899.8,1.05282]
[1742221732691,3.2078,1899.9,1899.7,2.48254847]
[1742221732893,3.2078,1899.9,1899.7,1.42970847]
[1742221733089,45.06055,1900.0,1899.7,1.42970847]
[1742221733289,3.2078,1900.0,1899.9,1.05277]
[1742221733488,3.2078,1900.0,1899.7,1.42970847]
[1742221733489,1.05263,1900.2,1900.1,1.05266]
[1742221733690,0.00790847,1900.4,1899.8,10.628]
[1742221733997,0.00790847,1900.4,1900.3,1.05254]
[1742221734889,0.04767445,1900.4,1900.3,1.05254]
[1742221737193,0.04767445,1900.4,1900.3,6.89474]
[1742221737392,3.2078,1900.6,1900.5,1.05243]
[1742221738220,4.26018,1900.6,1900.5,1.4341]
[1742221738497,1.05254,1900.3,1900.2,2.44159]
[1742221738694,4.26034,1900.3,1900.2,1.389]
[1742221738900,3.2078,1900.3,1900.1,5.1465]
[1742221739098,4.26038,1900.3,1900.2,1.389]
[1742221739485,3.2078,1900.4,1900.2,1.389]
[1742221739789,1.05245,1900.5,1900.4,1.05249]
[1742221739997,1.05251,1900.4,1900.2,6.52955]
[1742221740192,1.3791,1900.5,1900.2,5.477]
[1742221740398,4.26032,1900.4,1900.2,5.477]
[1742221740597,1.05254,1900.3,1900.2,5.477]
[1742221740899,1.05266,1900.1,1900.0,5.1407]
[1742221741093,1.05266,1900.1,1900.0,1.389]
[1742221741396,1.05266,1900.1,1899.8,5.1465]
[1742221741397,1.05277,1899.9,1899.8,5.1465]
[1742221741595,1.05277,1899.9,1899.7,1.37720847]
[1742221741596,1.05279,1899.9,1899.7,1.37720847]
[1742221741896,4.5928,1900.0,1899.7,1.37720847]
[1742221742095,5.64552,1900.0,1899.9,1.05277]
[1742221742300,3.2078,1900.2,1899.8,4.095]
[1742221742594,4.26051,1900.0,1899.9,1.3693]
[1742221743099,1.05282,1899.8,1899.7,0.00790847]
[1742221743394,4.26062,1899.8,1899.7,1.37720847]
[1742221743599,3.2078,1899.8,1899.7,2.43008847]
[1742221744096,1.05275,1900.0,1899.7,1.37720847]
[1742221744301,3.2078,1900.1,1899.7,1.37720847]
[1742221744302,4.26047,1900.1,1899.7,1.37720847]
[1742221744601,3.2078,1900.1,1899.7,1.37720847]
[1742221744802,1.05278,1899.9,1899.8,1.05279]
[1742221744997,2.43665,1900.0,1899.7,0.00790847]
[1742221745296,4.26049,1900.1,1899.7,0.00790847]
[1742221745490,1.05272,1900.0,1899.9,1.05275]
[1742221745687,1.05277,1899.9,1899.8,1.05278]
[1742221746002,3.2078,1900.1,1899.9,1.05277]
[1742221746192,1.05271,1900.0,1899.9,1.05277]
[1742221746396,3.2078,1900.1,1900.0,1.05271]
[1742221746700,3.2078,1900.1,1900.0,5.14171]
[1742221746897,4.5917,1900.4,1900.0,6.72077]
[1742221747099,1.05254,1900.4,1900.2,1.05256]
[1742221747502,2.43636,1900.5,1900.1,7.77813]
[1742221747692,2.63874847,1900.7,1900.3,1.05251]
[1742221747997,2.63874847,1900.7,1900.2,4.087]
[1742221747998,1.05254,1900.3,1900.2,4.087]
[1742221748299,1.0526,1900.2,1900.1,5.1465]
[1742221748502,1.0526,1900.2,1900.1,6.19916]
[1742221748706,4.6194,1900.4,1900.1,6.19916]
[1742221748898,1.0526,1900.2,1900.1,6.19916]
[1742221749099,1.05258,1900.3,1900.2,1.0526]
[1742221749391,1.0526,1900.2,1900.1,5.1465]
[1742221749599,1.0526,1900.2,1900.1,6.1991]
[1742221749902,1.0526,1900.2,1900.1,5.1465]
[1742221750602,1.0526,1900.2,1900.1,6.19916]
[1742221751694,1.0526,1900.2,1900.1,5.1465]
[1742221752093,7.2908,1900.2,1899.7,0.00790847]
[1742221752294,4.26062,1899.8,1899.7,0.00790847]
[1742221752597,4.26062,1899.8,1899.2,7.77936]
[1742221752598,1.05288,1899.7,1899.2,7.77936]
[1742221752905,1.05304,1899.5,1899.3,1.05308]
[1742221753399,1.0531,1899.3,1899.2,5.1465]
[1742221753706,1.05315,1899.2,1899.1,5.15440847]
[1742221754004,2.43685,1899.2,1899.1,5.15440847]
[1742221755699,1.05324,1899.1,1898.9,1.0533]
[1742221755902,4.5915,1899.0,1898.7,1.05343]
[1742221756105,3.2078,1898.8,1898.3,9.0151]
[1742221756311,5.4657,1898.7,1898.6,1.05349]
[1742221756604,3.2078,1898.8,1898.6,1.05346]
[1742221756605,4.26119,1898.8,1898.6,1.05346]
[1742221756812,1.4408,1899.0,1898.8,1.05333]
[1742221757007,4.26103,1899.1,1898.9,1.05329]
[1742221757201,3.2078,1899.1,1899.0,1.05327]